Cogmind - Beta 16 @@@ ROGUE MODE // 2025.11.19 @ 19:00:09 Player: ClassActJerk Result: Destroyed by Enhanced Grunt with Neutron Cannon Performance ------------- Evolutions (3) 1500 Regions Visited (7) 1400 Robots Destroyed (53) 265 Value Destroyed (1546) 1546 Prototype IDs (2) 40 Alien Tech Used (0) 0 Bonus (321) 321 TOTAL SCORE: 5072 Bonus ------- Follower Combat Kills 21 Met Data Miner 300 Cogmind --------- Core Integrity 0/700 Matter 190/300 Energy 149/150 System Corruption 3% Temperature Cool (6) Movement Core (1500) Ox29 Location -7/Data Miner Parts ------- > --- POWER (2) -------- Micro Nuclear Core > --- PROPULSION (4) --- (None) > --- UTILITY (4) ------ Cryofiber Web Huge Storage Unit Improved Power Shielding > --- WEAPON (3) ------- (None) > --- INVENTORY (25) --- Ion Engine Light Ion Engine Light Nuclear Core Improved Deuterium Engine Gravmag System Gravmag System Faulty Impact Mace Impact Mace Impact Mace Chainsword Peak State ------------ > --- POWER ------------ Micro Nuclear Core Micro Nuclear Core > --- PROPULSION ------- Aluminum Leg Carbon-fiber Leg Improved Titanium Leg > --- UTILITY ---------- Cryofiber Web Huge Storage Unit Improved Power Shielding Improved Utility Shielding > --- WEAPON ----------- Arc Projector Assault Cannon Impact Mace > --- INVENTORY -------- Ion Engine Light Ion Engine Improved Deuterium Engine Gravmag System Gravmag System Hardened Light Armor Plating Improved Thermal Shield Heavy Particle Gun Assault Cannon Assault Cannon Concussive RPG Mining Laser Impact Mace Impact Mace Chainsword [Rating: 43] Favorites ----------- Power Micro Nuclear Core Engine Ion Engine Power Core Micro Nuclear Core Propulsion Aluminum Leg Treads Light Treads Leg Aluminum Leg Utility Cryofiber Web Device Cryofiber Web Storage Large Storage Unit Protection Improved Power Shielding Weapon Assault Cannon Energy Gun Medium Laser Energy Cannon Heavy Particle Cannon Ballistic Gun Assault Rifle Ballistic Cannon Assault Cannon Launcher Concussive RPG Special Weapon Mining Laser Impact Weapon Impact Mace Slashing Weapon Chainsword Build | -11 -10 -10 -9 -8 -7 -7 -7 ------- Run | Yrd Mat Min Mat Mat Fac Low Dat Slots Evolved 6 | . . . 2 2 2 . . Power 1 | . . . . 1 . . . Propulsion 2 | . . . 2 . . . . Utility 2 | . . . . 1 1 . . Weapon 1 | . . . . . 1 . . Parts Attached 75 | 9 9 . 10 22 21 2 2 Power 13 | 1 3 . 1 6 2 . . Engine 7 | 1 3 . 1 2 . . . Core 6 | . . . . 4 2 . . Reactor . | . . . . . . . . Propulsion 24 | 3 2 . 5 8 6 . . Treads 2 | 2 . . . . . . . Leg 22 | 1 2 . 5 8 6 . . Wheel . | . . . . . . . . Hover . | . . . . . . . . Flight . | . . . . . . . . Utility 13 | 2 1 . 1 3 4 1 1 Device 3 | . . . . 1 1 . 1 Storage 5 | 2 . . 1 1 1 . . Processor . | . . . . . . . . Hackware . | . . . . . . . . Protection 5 | . 1 . . 1 2 1 . Artifact . | . . . . . . . . Weapon 25 | 3 3 . 3 5 9 1 1 Energy Gun 7 | 1 2 . 1 2 1 . . Energy Cannon 1 | . . . . 1 . . . Ballistic Gun 5 | 2 1 . 1 1 . . . Ballistic Cannon 4 | . . . 1 . 2 1 . Launcher 3 | . . . . . 2 . 1 Special Weapon 1 | . . . . 1 . . . Impact Weapon 2 | . . . . . 2 . . Slashing Weapon 2 | . . . . . 2 . . Piercing Weapon . | . . . . . . . . Special Melee Weapon . | . . . . . . . . Unidentified Prototypes 2 | . . . . 1 1 . . Parts Lost 39 | . 7 . 5 2 15 . 10 Power 8 | . 2 . 1 2 2 . 1 Propulsion 15 | . 2 . 3 . 7 . 3 Utility 7 | . 1 . 1 . 3 . 2 Weapon 9 | . 2 . . . 3 . 4 Highest Loss Streak 10 | . 7 . 3 2 9 . 10 To Critical Strikes . | . . . . . . . . Average Backups 9 | 2 4 6 4 9 13 13 12 Power 1 | . . . 1 . 2 4 4 Propulsion 1 | . . 2 . 2 2 2 2 Utility 1 | . 1 1 . 1 2 1 . Weapon 4 | . 2 3 3 4 5 5 4 Tool/Special . | . . . . . . . . Unused Backups 15 | . 2 . . 3 3 . 7 Power 3 | . . . . . . . 3 Propulsion 2 | . . . . . . . 2 Utility . | . . . . . . . . Weapon 10 | . 2 . . 3 3 . 2 Tool/Special . | . . . . . . . . Average Slot Usage (%) 91 | . 91 100 83 93 92 91 88 Engine 6 | . 12 14 10 10 . . . Core 7 | . . . . 5 14 15 15 Treads 2 | . 20 . . . . . . Leg 26 | . 3 28 37 34 25 23 21 Device 4 | . . . . 1 9 7 8 Storage 13 | . 24 14 11 17 9 7 7 Protection 7 | . 1 14 2 6 10 15 13 Energy Gun 5 | . 2 28 19 . 6 . . Ballistic Gun 5 | . 23 . 1 8 . . . Ballistic Cannon 5 | . . . 1 7 6 14 15 Impact Weapon 1 | . . . . . 3 3 . Slashing Weapon 1 | . . . . . 3 . . Peak Build Rating 43 | 7 7 7 9 30 43 40 41 Average Rating 23 | 4 6 7 7 19 39 37 35 On Entrance 16 | . 7 7 7 8 27 36 36 Avg Prop Armor Cover (%) 7 | . . . 8 5 . . . Naked Turns . | . . . . . . . . Heaviest Build 113 | 16 17 17 32 43 110 113 111 Greatest Support 60 | 40 40 20 40 43 60 45 45 Greatest Overweight (x) 30 | 1 1 . 1 1 4 2 30 Average Overweight (x) . | . . . . . 1 2 2 Largest Inventory Capacity 25 | 8 8 8 15 15 25 25 25 Average Capacity 17 | 7 8 8 14 15 24 25 25 Most Carried 18 | 5 8 6 8 15 18 14 13 Average Carried 9 | 2 4 6 4 9 13 13 12 Final Capacity 25 | 8 8 8 15 15 25 25 25 Final Carried 15 | 3 6 6 4 14 15 13 10 Class Distribution -------------------- 70% | Mutant 25% | Scavenger-Mutant 3% | Tank Dominant Class ---------------- Mutant | -10/Materials Mutant | -10/Mines Scavenger-Mutant | -9/Materials Scavenger-Mutant | -8/Materials Mutant | -7/Factory Tank | -7/Lower Caves Tank | -7/Data Miner Resources | -11 -10 -10 -9 -8 -7 -7 -7 ----------- Run | Yrd Mat Min Mat Mat Fac Low Dat Matter Collected 1678 | 367 250 . 94 614 353 . . Remotely . | . . . . . . . . Salvage Created 2096 | 119 475 . 349 659 494 . . Parts 95 | 8 20 . 15 24 28 . . Haulers Intercepted 1 | . . . . . 1 . . Recyclers Shooed 4 | 2 . . . 1 1 . . Parts Field Recycled . | . . . . . . . . Retrieved Matter . | . . . . . . . . Parts Self-Destructed . | . . . . . . . . Prevented . | . . . . . . . . Parts Restored . | . . . . . . . . Kills | -11 -10 -10 -9 -8 -7 -7 -7 ------- Run | Yrd Mat Min Mat Mat Fac Low Dat Combat Hostiles Destroyed 42 | . 10 . 12 10 10 . . Melee 3 | . . . . . 3 . . Guns 27 | . 10 . 12 4 1 . . Cannons 12 | . . . . 6 6 . . Classes Destroyed 8 | 3 2 . 1 . 2 . . Worker 3 | 1 . . . 2 . . . Tunneler 1 | 1 . . . . . . . Hauler 1 | . . . . . 1 . . Recycler 6 | 1 1 . . 3 1 . . Swarmer 13 | . 3 . 6 . 4 . . Grunt 23 | . 7 . 5 10 1 . . Sentry 3 | . . . 1 . 2 . . Programmer 3 | . . . . . 3 . . Best Kill Streak 6 | 1 4 . 6 5 4 . . Combat Bots Only 6 | . 3 . 6 3 4 . . Max Kills in Single Turn 2 | 1 1 . 2 1 1 . . Gunslinging 1 | . . . 1 . . . . Exploded . | . . . . . . . . Melee 1 | . . . . . 1 . . Uniques/NPCs Destroyed . | . . . . . . . . Combat | -11 -10 -10 -9 -8 -7 -7 -7 -------- Run | Yrd Mat Min Mat Mat Fac Low Dat Hostile Shots Fired 756 | . 119 . 124 77 385 . 51 Missed 244 | . 23 . 35 14 155 . 17 Hits 512 | . 96 . 89 63 230 . 34 Projectile 512 | . 96 . 89 63 230 . 34 Critical Strikes 6 | . 2 . . 2 2 . . Damage Taken 6276 | . 1120 . 876 1003 1963 . 1314 Core 1255 | . 232 . 169 110 400 . 344 Absorbed by Shields . | . . . . . . . . Redirected to Shielding 150 | . . . . . 99 . 51 Ignored by Resistances 259 | . . . . . . . 259 Core Remaining (%) 61 | 100 . 7 57 80 . . . Volleys Fired 221 | 17 58 . 53 53 23 6 11 Largest 3 | 2 2 . 2 2 2 3 3 Hottest 174 | 40 70 . 100 100 92 174 129 Shots Fired 366 | 22 90 . 81 100 42 8 23 Gun 254 | 22 90 . 79 47 12 . 4 Cannon 98 | . . . 2 47 30 2 17 Launcher 1 | . . . . . . . 1 Special 13 | . . . . 6 . 6 1 Kinetic 231 | 10 85 . 4 83 30 2 17 Thermal 109 | . 4 . 77 17 . 6 5 Explosive 1 | . . . . . . . 1 Electromagnetic 25 | 12 1 . . . 12 . . Robot Hit Streak 12 | 3 10 . 10 12 5 . 2 Robot Miss Streak 5 | 5 2 . 3 3 3 . 4 Penetration Max . | . . . . . . . . Secondary Targets 2 | . 1 . 1 . . . . Max Gunslinging Chain 1 | . 1 . 1 . . . . Shots Hit Robots 230 | 10 62 . 50 59 40 . 9 Core Hits 95 | 4 22 . 20 28 16 . 5 Critical Kills . | . . . . . . . . Critical Parts Destroyed 1 | . . . . 1 . . . Critical Strikes 12 | . . . 5 1 5 . 1 Burn 6 | . . . 5 . . . 1 Destroy 1 | . . . . 1 . . . Blast 1 | . . . . . 1 . . Sever 4 | . . . . . 4 . . Melee Attacks 19 | . . . . . 19 . . Impact 1 | . . . . . 1 . . Slashing 18 | . . . . . 18 . . Piercing . | . . . . . . . . Sneak Attacks . | . . . . . . . . Combat Hostiles . | . . . . . . . . Follow-up Attacks . | . . . . . . . . Damage Inflicted 3981 | 136 667 . 677 1123 1076 . 302 Guns 1916 | 136 667 . 655 411 34 . 13 Cannons 1375 | . . . 22 688 458 . 207 Explosions 82 | . . . . . . . 82 Melee 584 | . . . . . 584 . . Ramming . | . . . . . . . . Kinetic 2216 | 69 617 . 32 849 458 . 191 Thermal 970 | . 38 . 645 274 . . 13 Explosive 82 | . . . . . . . 82 Electromagnetic 113 | 67 12 . . . 34 . . Impact 83 | . . . . . 67 . 16 Slashing 517 | . . . . . 517 . . Piercing . | . . . . . . . . Highest Corruption 3 | . . . . . 3 3 3 Average Corruption 1 | . . . . . 1 3 3 Corruption Purged . | . . . . . . . . Corruption Blocked . | . . . . . . . . Effects 14 | . . . . . 10 2 2 Message Errors 5 | . . . . . 3 1 1 Matter Fused 4 | . . . . . 4 . . Energy Discharges 2 | . . . . . 2 . . Data Loss (minor) 2 | . . . . . 1 . 1 Data Loss (major) 1 | . . . . . . 1 . Overload Shots . | . . . . . . . . Overflow Damage 52 | . . . . 8 44 . . Projectiles 8 | . . . . 8 . . . Explosions . | . . . . . . . . Melee 44 | . . . . . 44 . . Knockbacks 19 | . . . 1 11 6 . 1 Impact . | . . . . . . . . Kinetic 16 | . . . 1 9 5 . 1 Secondary 3 | . . . . 2 1 . . Self-Inflicted Damage . | . . . . . . . . Shots . | . . . . . . . . Rammed . | . . . . . . . . Targets Rammed . | . . . . . . . . Kicked . | . . . . . . . . Crushed . | . . . . . . . . Highest Temperature 494 | 20 134 . 370 494 155 195 24 Average Temperature 120 | 18 37 . 184 111 79 96 8 Received Heat Transfer 1818 | . 591 . 297 603 327 . . Effects 11 | . . . 6 5 . . . Shutdowns 3 | . . . 1 2 . . . Energy Bleed 2 | . . . 1 1 . . . Interference 3 | . . . 3 . . . . Matter Decay 1 | . . . . 1 . . . Short Circuit 2 | . . . 1 1 . . . Siege Activations . | . . . . . . . . Martial Activations . | . . . . . . . . Shielding Activations . | . . . . . . . . Robots Disrupted . | . . . . . . . . Combat Hostiles . | . . . . . . . . Robots Corrupted . | . . . . . . . . Combat Hostiles . | . . . . . . . . Parts Fried 1 | . . . . . 1 . . Impact Corruptions 1 | . . . . . 1 . . Robots Melted . | . . . . . . . . Combat Hostiles . | . . . . . . . . Parts Melted 8 | . . . 6 2 . . . Heat Transferred 2936 | . 111 . 2294 420 . . 111 Parts Sabotaged . | . . . . . . . . Parts Stolen . | . . . . . . . . Parts Stripped . | . . . . . . . . Power Chain Reactions . | . . . . . . . . Alert | -11 -10 -10 -9 -8 -7 -7 -7 ------- Run | Yrd Mat Min Mat Mat Fac Low Dat Maximum Alert Level 1 | . . . 1 . . . . Low Security (%) 93 | 100 100 100 39 100 100 . . Level 1 6 | . . . 60 . . . . Level 2 . | . . . . . . . . Level 3 . | . . . . . . . . Level 4 . | . . . . . . . . Level 5 . | . . . . . . . . High Security . | . . . . . . . . Max Security . | . . . . . . . . Peak Influence 272 | 5 65 1 272 102 68 . . Initial 83 | . . 1 . 83 30 . . Average 32 | . 17 . 168 31 7 . . Influence Increases 1311 | 15 245 . 482 314 255 . . Destroy 0b10 Robot/C 900 | . 200 . 300 200 200 . . Destroy 0b10 Robot/NC 55 | 15 5 . . 25 10 . . Destroy Leader 152 | . 40 . 40 30 42 . . Allied During Kill 7 | . . . 7 . . . . Successful Hack 5 | . . . . 5 . . . Disable Machine 15 | . . . . 15 . . . Destroy Structure 12 | . . . . 9 3 . . Lose Combat Pursuer 165 | . . . 135 30 . . . Influence Decreases 1311 | 15 241 4 284 444 261 62 . Entered New Map 180 | . . 3 . 115 38 24 . Time Decay 937 | 15 197 1 194 309 183 38 . Lost Part 154 | . 44 . 50 20 40 . . Lost Ally 40 | . . . 40 . . . . Squads Dispatched 9 | . 2 . 1 1 5 . . Investigation 1 | . . . . 1 . . . Extermination 3 | . . . . . 3 . . Reinforcement 5 | . 2 . 1 . 2 . . Assault . | . . . . . . . . Garrison . | . . . . . . . . Intercept . | . . . . . . . . Searches Triggered . | . . . . . . . . Construction Impeded 1 | . . . . . 1 . . Haulers Reinforced . | . . . . . . . . Active Scanning Responses . | . . . . . . . . Cargo Convoy Interrupts . | . . . . . . . . Stealth | -11 -10 -10 -9 -8 -7 -7 -7 --------- Run | Yrd Mat Min Mat Mat Fac Low Dat Distress Signals 7 | . 1 . 3 3 . . . Communications Jammed . | . . . . . . . . Distress Signals . | . . . . . . . . Times Spotted 87 | . 17 . 26 23 14 . 7 Peak Tracking Total 8 | . 4 . 8 4 5 . 4 Tactical Retreats 7 | . . . 5 2 . . . Traps | -11 -10 -10 -9 -8 -7 -7 -7 ------- Run | Yrd Mat Min Mat Mat Fac Low Dat Traps Triggered 2 | . . . . 1 1 . . Indirectly . | . . . . . . . . Trap Hack Attempts . | . . . . . . . . Triggered . | . . . . . . . . Disarmed . | . . . . . . . . Reprogrammed . | . . . . . . . . Reused . | . . . . . . . . Traps Extracted . | . . . . . . . . Installed . | . . . . . . . . Triggered . | . . . . . . . . Machines | -11 -10 -10 -9 -8 -7 -7 -7 ---------- Run | Yrd Mat Min Mat Mat Fac Low Dat Machines Disabled 2 | . . . . 1 . . 1 Max in Single Turn 1 | . . . . 1 . . 1 Machines Repaired . | . . . . . . . . Machines Dismantled . | . . . . . . . . Machines Sabotaged . | . . . . . . . . Overloaded Fab Kills . | . . . . . . . . Hacking | -11 -10 -10 -9 -8 -7 -7 -7 --------- Run | Yrd Mat Min Mat Mat Fac Low Dat Machines Accessed 3 | . . . 1 2 . . . Terminals 3 | . . . 1 2 . . . Fabricators . | . . . . . . . . Repair Stations . | . . . . . . . . Recycling Units . | . . . . . . . . Scanalyzers . | . . . . . . . . Garrison Access . | . . . . . . . . Total Hacks 6 | . . . 1 5 . . . Successful 2 | . . . . 2 . . . Failed 4 | . . . 1 3 . . . Catastrophic . | . . . . . . . . Database Lockouts . | . . . . . . . . Manual 6 | . . . 1 5 . . . Terminals 6 | . . . 1 5 . . . Fabricators . | . . . . . . . . Repair Stations . | . . . . . . . . Recycling Units . | . . . . . . . . Scanalyzers . | . . . . . . . . Garrison Access . | . . . . . . . . Terminal Hacks . | . . . . . . . . Fabricator Hacks . | . . . . . . . . Repair Station Hacks . | . . . . . . . . Recycling Unit Hacks . | . . . . . . . . Scanalyzer . | . . . . . . . . Garrison Access Hacks . | . . . . . . . . Unauthorized Hacks 2 | . . . . 2 . . . Terminals 2 | . . . . 2 . . . Assimilate 1 | . . . . 1 . . . Botnet 1 | . . . . 1 . . . Fabricators . | . . . . . . . . Repair Stations . | . . . . . . . . Recycling Units . | . . . . . . . . Scanalyzers . | . . . . . . . . Garrison Access . | . . . . . . . . Data Cores Recovered . | . . . . . . . . Used . | . . . . . . . . Hacking Detections 3 | . . . 1 2 . . . Full Trace Events 2 | . . . . 2 . . . Feedback Events . | . . . . . . . . Feedback Blocked . | . . . . . . . . Robot Schematics Acquired . | . . . . . . . . Robots Built . | . . . . . . . . Authchips . | . . . . . . . . Time . | . . . . . . . . Total Robot Build Rating . | . . . . . . . . Part Schematics Acquired . | . . . . . . . . Parts Built . | . . . . . . . . Authchips . | . . . . . . . . Time . | . . . . . . . . Total Part Build Rating . | . . . . . . . . Part Studies Acquired . | . . . . . . . . Parts Repaired . | . . . . . . . . Time . | . . . . . . . . Parts Recycled . | . . . . . . . . Recycled Matter . | . . . . . . . . Retrieved Matter . | . . . . . . . . Retrieved Components . | . . . . . . . . Parts Scanalyzed . | . . . . . . . . Part Schematics Acquired . | . . . . . . . . Parts Damaged . | . . . . . . . . Bothacking | -11 -10 -10 -9 -8 -7 -7 -7 ------------ Run | Yrd Mat Min Mat Mat Fac Low Dat Used RIF Installer . | . . . . . . . . Robots Hacked . | . . . . . . . . Non-combat . | . . . . . . . . Combat . | . . . . . . . . Robot Hacks Applied . | . . . . . . . . Relay Couplers Released . | . . . . . . . . Fabnet Peak Effective % . | . . . . . . . . Robots Rewired . | . . . . . . . . Allies Hacked . | . . . . . . . . Hacks Repelled . | . . . . . . . . Allies | -11 -10 -10 -9 -8 -7 -7 -7 -------- Run | Yrd Mat Min Mat Mat Fac Low Dat Total Allies 3 | . . 3 . . . . . Largest Group 3 | . . 3 3 . . . . Highest-Rated Group 40 | . . 40 40 . . . . Highest-Rated Ally 16 | . . 16 16 . . . . Total Orders . | . . . . . . . . Ally Attacks 14 | . . . 14 . . . . Total Damage 117 | . . . 117 . . . . Kills 3 | . . . 3 . . . . Allies Corrupted . | . . . . . . . . Allies Melted . | . . . . . . . . Intel | -11 -10 -10 -9 -8 -7 -7 -7 ------- Run | Yrd Mat Min Mat Mat Fac Low Dat Active Infowar (turns) . | . . . . . . . . Robot Analysis Total . | . . . . . . . . Derelict Logs Recovered 1 | . . 1 . . . . . Drone Launches . | . . . . . . . . Drone Recoveries . | . . . . . . . . Exploration | -11 -10 -10 -9 -8 -7 -7 -7 ------------- Run | Yrd Mat Min Mat Mat Fac Low Dat Turns Passed 4497 | 162 583 167 453 1261 1641 90 140 Spaces Moved 1806 | 78 224 140 209 576 515 24 40 Core 39 | 21 17 . . . . . 1 Treads 221 | 57 164 . . . . . . Legs 1546 | . 43 140 209 576 515 24 39 Wheels . | . . . . . . . . Hover . | . . . . . . . . Flight . | . . . . . . . . Fastest Speed 50 | 50 100 120 120 120 120 263 263 Average Speed 170 | 132 147 120 126 135 242 263 296 Slowest Speed 1550 | 160 160 120 190 190 400 263 1550 Overloaded Moves . | . . . . . . . . Propulsion Burnouts . | . . . . . . . . Robots Hopped . | . . . . . . . . Potential Cave-ins . | . . . . . . . . Cave-ins Triggered . | . . . . . . . . Exploration Rate (%) 30 | 8 43 43 20 48 12 8 63 Regions Visited 7 Branch Regions 3 Pre-discovered Areas 1 | . . 1 . . . . . Known Exits Taken . | . . . . . . . . Unknown Exits Taken 7 | 1 1 1 1 1 1 1 . Scrap Searched . | . . . . . . . . Spaces Dug 5 | . . . . 5 . . . Terrain Destroyed 7 | . . . . 6 1 . . Melee . | . . . . . . . . Projectile 7 | . . . . 6 1 . . AOE . | . . . . . . . . Terrain Rammed . | . . . . . . . . Walls Destroyed . | . . . . . . . . Machines Disabled . | . . . . . . . . Actions | -11 -10 -10 -9 -8 -7 -7 -7 --------- Run | Yrd Mat Min Mat Mat Fac Low Dat Total 2853 | 113 396 139 319 962 838 32 54 Wait 608 | . 86 . 33 258 231 . . Move 1799 | 77 223 139 208 575 514 23 40 Hop . | . . . . . . . . Pick Up 84 | 9 14 . 9 31 21 . . Fast Attach 6 | 2 1 . . 1 2 . . Attach 63 | 6 8 . 9 18 17 2 3 Detach 2 | . . . . 1 1 . . Swap 14 | 1 1 . 1 7 3 1 . Drop 37 | 1 5 . 6 18 7 . . Fire 221 | 17 58 . 53 53 23 6 11 Melee 19 | . . . . . 19 . . Ram . | . . . . . . . . Kick . | . . . . . . . . Crush . | . . . . . . . . Escape Stasis . | . . . . . . . . Rewire . | . . . . . . . . Trap . | . . . . . . . . Miscellaneous . | . . . . . . . . Route ------- -11/Scrapyard -10/Materials (discovered 3 exits: [*Min x2] / [*Sub]) -10/Mines -9/Materials -8/Materials -7/Factory -7/Lower Caves -7/Data Miner (discovered 1 exit: [*Pro]) History --------- Turn | Location | Event 4 | -11/Scrapyard | Discovered new exit (range 15) 163 | -11/Scrapyard | Entered Materials 261 | -10/Materials | Discovered new exit (range 13) 316 | -10/Materials | Build established: Mutant 609 | -10/Materials | Core integrity fell below 50% 637 | -10/Materials | Core integrity fell below 20% 657 | -10/Materials | Lost 7 parts (2p2n1u2w) 709 | -10/Materials | Discovered new exit (range 9) 742 | -10/Materials | Discovered new exit (range 5) 746 | -10/Materials | Entered Mines 748 | -10/Mines | Assisted by bots powering up and referring to "LRC-V3" 763 | -10/Mines | Learned Materials emergency access door positions 873 | -10/Mines | Learned location of Storage (-7) 902 | -10/Mines | Discovered new exit (range 8) 913 | -10/Mines | Entered Materials 913 | -9/Materials | Accompanied by 3 allies 913 | -9/Materials | Evolved 2 slots: Propulsion x2 1007 | -9/Materials | Lost 3 allies 1203 | -9/Materials | Lost 3 parts (1p2n) 1352 | -9/Materials | Discovered new exit (range 11) 1366 | -9/Materials | Entered another Materials area 1366 | -8/Materials | Evolved 2 slots: Power x1, Utility x1 1487 | -8/Materials | Build established: Scavenger-Mutant 2307 | -8/Materials | Build established: Mutant 2610 | -8/Materials | Discovered new exit (range 14) 2627 | -8/Materials | Entered Factory 2627 | -7/Factory | Evolved 2 slots: Utility x1, Weapon x1 3102 | -7/Factory | Lost 9 parts (1p4n2u2w) 3709 | -7/Factory | Core integrity fell below 50% 4195 | -7/Factory | Discovered new exit (range 12) 4268 | -7/Factory | Entered Lower Caves 4330 | -7/Lower Caves | A Derelict revealed a hidden shortcut to meet someone special 4358 | -7/Lower Caves | Entered Data Miner 4358 | -7/Data Miner | Discovered new exit (range 6) 4408 | -7/Data Miner | Met Data Miner 4445 | -7/Data Miner | Data Conduit disabled 4493 | -7/Data Miner | Core integrity fell below 20% 4498 | -7/Data Miner | Destroyed by Enhanced Grunt with Neutron Cannon Last Messages --------------- your way because masking your presence is increasingly difficult. [Achievement: The Oracle] 04445_ Data Conduit disabled. 04445_ Data Miner disappears through a trap door. 04461_ Mining Laser destroyed. 04465_ Enhanced Grunt knocked back. 04468_ Hrd. Light Armor Plating destroyed. 04470_ Aluminum Leg destroyed. 04473_ Concussive RPG expended. 04473_ Enhanced Grunt knocked back. 04484_ Imp. Titanium Leg destroyed. 04489_ Enhanced Grunt suffers critical hit (Burn). 04490_ Carbon-fiber Leg destroyed. 04490_ Mic. Nuclear Core destroyed. 04490_ Assault Cannon destroyed. 04496_ Hvy. Particle Gun destroyed. 04498_ Imp. Thermal Shield destroyed. Map ----- +----------------------------------------------------+ | | | | | | | | | | | | | | | | | | | | | | | | | | | ??????????????????????????????????????? | | ??????????????????????????????????????? | | ??????????????????????????????????????? | | ??????????????????????????????????????? | | ?????????????????????????????????????## | | ??????###############??????????????### | | ?????"""""""""""""""######????????## | | ????""""""""" " " g# ######## < | | ????""""""""" % % | | ????"""""" % % | | ???"""""" g g | | ???""""" | | ???"""""" @ | | ???""""" g"""""""""""""" | | ????"""""" """ ############# | | ????"""""" """""###???????????? | | ????#"""""" "#####?????????????? | | ?????#######";# "#?????????????????? | | ???????????#"### "#?????????????????? | | ???????????#"#?# "#?????????????????? | | ???????????#"#? "#?????????????????? | | ???????????#"## "#?????????????????? | | ?????????????? "#?????????????????? | | ?????????????### "#?????????????????? | | ???????????????# "#?????????????????? | | ???????????????# "??????????????????? | | ???????????????? ???????????????????? | | ??????????????????????????????????????? | | ??????????????????????????????????????? | | ??????????????????????????????????????? | | ??????????????????????????????????????? | | ??????????????????????????????????????? | | ??????????????????????????????????????? | | ??????????????????????????????????????? | | ??????????????????????????????????????? | | ??????????????????????????????????????? | | ??????????????????????????????????????? | +----------------------------------------------------+ Best States ------------- Heat Dissipation 34 Energy Generation 25 Energy Capacity 510 Matter Stores 400 Matter Capacity 400 Sight Range 16 Terrain Scan Density 10 Base Temperature (-) 100 Armor Coverage 150 Resistance: TH 25 Power Shielding 66 Utility Shielding 66 Evasion (%) 63 Recoil Reduction 2 Item Schematics ----------------- None Robot Schematics ------------------ None Fabricated ------------ Nothing Repaired ---------- Nothing Studied --------- None Alien Tech Used ----------------- None Achievements -------------- The Oracle Challenges ------------ None Game ------ Seed SubdwellerShieldTurretformer Manual? 0 Play Time 00:33:35 Cumulative 32.5 hours Start 2025.11.19 @ 18:27:49 End 2025.11.19 @ 19:00:09 Sessions 1 Manual Loads 0 Difficulty Rogue Special Mode None Game No. 98 Rogue 98 Adventurer 0 Explorer 0 Win Type - Total 0 Types 0/0/0/0/0/0/0/0/0/0 Lore% 7 Gallery% 24 Achievement% 18 Wizard Run 0 Options --------- Layout 1 ASCII 0 Keyboard 0 Movement Mouse Keybinds 0 Fullscreen 1 Font 24/Terminus Map View 50x35 Zoom Use 0% Tactical HUD 1 Map Filters NONE Filters NONE Steam 1 RUN: b97c08f5-476e-41b7-97f3-f748f4a36add